[Event "Sunway Sitges Chess Festival"]
[Date "2024.12.21"]
[White "Gorshtein, Ido"]
[Black "Isanzhulov, Arystan"]
[WhiteElo "2422"]
[BlackElo "2395"]
[Round "4.3"]
[Result "1-0"]
[TimeControl "40/5400+30:1800+30"]

1. c4 {[%clk 1:30:57]} 1... Nf6 {[%clk 1:30:34]} 2. Nc3 {[%clk 1:31:18]} 2... e6
{[%clk 1:30:57]} 3. Nf3 {[%clk 1:31:07]} 3... d5 {[%clk 1:31:15]} 4. e3 {[%clk
1:31:33]} 4... a6 {[%clk 1:30:06]} 5. b3 {[%clk 1:31:17]} 5... b6 {[%clk
1:29:37]} 6. Bb2 {[%clk 1:29:19]} 6... Bb7 {[%clk 1:29:14]} 7. cxd5 {[%clk
1:25:37]} 7... exd5 {[%clk 1:27:12]} 8. d4 {[%clk 1:26:01]} 8... Nbd7 {[%clk
1:23:56]} 9. g3 {[%clk 1:26:21]} 9... Bd6 {[%clk 1:20:40]} 10. Bg2 {[%clk
1:26:06]} 10... O-O {[%clk 1:20:20]} 11. O-O {[%clk 1:26:26]} 11... Re8 {[%clk
1:15:36]} 12. Ne2 {[%clk 1:26:34]} 12... c5 {[%clk 1:06:13]} 13. dxc5 {[%clk
1:14:21]} 13... bxc5 {[%clk 1:05:46]} 14. Nf4 {[%clk 1:13:01]} 14... Rc8 {[%clk
0:56:45]} 15. Nh4 {[%clk 1:10:14]} 15... Be5 {[%clk 0:53:37]} 16. Bxe5 {[%clk
1:08:59]} 16... Nxe5 {[%clk 0:53:52]} 17. Nf3 {[%clk 1:07:46]} 17... Ng6 {[%clk
0:51:45]} 18. Nxg6 {[%clk 1:00:32]} 18... hxg6 {[%clk 0:51:00]} 19. Rc1 {[%clk
1:00:52]} 19... a5 {[%clk 0:42:01]} 20. Ng5 {[%clk 0:53:42]} 20... Qb6 {[%clk
0:37:49]} 21. Qf3 {[%clk 0:46:36]} 21... Ba6 {[%clk 0:32:09]} 22. Rfe1 {[%clk
0:34:42]} 22... Re5 {[%clk 0:27:40]} 23. Qf4 {[%clk 0:27:17]} 23... Rce8 {[%clk
0:28:05]} 24. h4 {[%clk 0:22:53]} 24... d4 {[%clk 0:25:59]} 25. e4 {[%clk
0:22:27]} 25... a4 {[%clk 0:25:54]} 26. Qd2 {[%clk 0:20:03]} 26... axb3 {[%clk
0:24:01]} 27. axb3 {[%clk 0:20:29]} 27... Qxb3 {[%clk 0:23:51]} 28. Rb1 {[%clk
0:19:16]} 28... Qd3 {[%clk 0:04:44]} 29. Qa5 {[%clk 0:13:22]} 29... Ng4 {[%clk
0:02:45]} 30. Rb2 {[%clk 0:08:42]} 30... Qc3 {[%clk 0:01:18]} 31. Qa1 {[%clk
0:06:42]} 31... Rxg5 {[%clk 0:00:39]} 32. hxg5 {[%clk 0:06:17]} 32... d3 {[%clk
0:00:44]} 33. Rc1 {[%clk 0:05:58]} 33... Qd4 {[%clk 0:00:34]} 34. Rd2 {[%clk
0:05:59]} 34... Qxa1 {[%clk 0:00:35]} 35. Rxa1 {[%clk 0:06:26]} 35... Bb5 {[%clk
0:00:32]} 36. Rb1 {[%clk 0:04:19]} 36... Rb8 {[%clk 0:00:43]} 37. Rxd3 {[%clk
0:04:39]} 37... Bxd3 {[%clk 0:00:45]} 38. Rxb8+ {[%clk 0:05:00]} 38... Kh7
{[%clk 0:01:13]} 39. Rc8 {[%clk 0:04:07]} 39... c4 {[%clk 0:01:29]} 40. Rc7
{[%clk 0:33:29]} 40... Kg8 {[%clk 0:31:34]} 41. Rc8+ {[%clk 0:31:12]} 41... Kh7
{[%clk 0:32:02]} 42. f4 {[%clk 0:29:56]} 42... Ne3 {[%clk 0:31:14]} 43. Bf3
{[%clk 0:29:25]} 43... Nf1 {[%clk 0:29:16]} 44. Kf2 {[%clk 0:28:59]} 44... Nd2
{[%clk 0:29:33]} 45. e5 {[%clk 0:24:07]} 45... Bf5 {[%clk 0:25:42]} 46. Rc7
{[%clk 0:24:12]} 46... Be6 {[%clk 0:26:06]} 47. g4 {[%clk 0:19:07]} 47... Kg8
{[%clk 0:25:12]} 48. Be2 {[%clk 0:18:36]} 48... c3 {[%clk 0:23:11]} 49. Ke3
{[%clk 0:18:42]} 1-0

[Variant "Standard"]
[Site "Europe Echecs"]

[Event "Sunway Sitges Chess Festival"]
[Date "2024.12.21"]
[White "Aloma Vidal, Robert"]
[Black "Vetokhin, Savva"]
[WhiteElo "2398"]
[BlackElo "2502"]
[Round "4.4"]
[Result "1/2-1/2"]
[TimeControl "40/5400+30:1800+30"]

1. Nf3 {[%clk 1:30:56]} 1... Nf6 {[%clk 1:30:49]} 2. c4 {[%clk 1:31:20]} 2... e6
{[%clk 1:31:10]} 3. g3 {[%clk 1:31:44]} 3... d5 {[%clk 1:31:03]} 4. Bg2 {[%clk
1:32:08]} 4... dxc4 {[%clk 1:31:29]} 5. O-O {[%clk 1:32:30]} 5... a6 {[%clk
1:31:30]} 6. a4 {[%clk 1:31:38]} 6... Bd6 {[%clk 1:24:34]} 7. Na3 {[%clk
1:25:04]} 7... b5 {[%clk 1:21:43]} 8. axb5 {[%clk 1:11:35]} 8... axb5 {[%clk
1:22:10]} 9. Nd4 {[%clk 1:08:05]} 9... Ra5 {[%clk 1:08:37]} 10. Ndxb5 {[%clk
1:04:17]} 10... Ba6 {[%clk 1:07:40]} 11. Nxd6+ {[%clk 0:54:03]} 11... cxd6
{[%clk 1:08:04]} 12. b4 {[%clk 0:53:54]} 12... cxb3 {[%clk 1:07:07]} 13. d3
{[%clk 0:52:00]} 13... Nbd7 {[%clk 0:58:47]} 14. Bd2 {[%clk 0:46:41]} 14... Rc5
{[%clk 0:53:14]} 15. Qxb3 {[%clk 0:40:25]} 15... Nd5 {[%clk 0:43:08]} 16. Nc4
{[%clk 0:22:09]} 16... Bxc4 {[%clk 0:38:00]} 17. dxc4 {[%clk 0:20:48]} 17...
N5b6 {[%clk 0:33:33]} 18. Bb4 {[%clk 0:17:52]} 18... Qc7 {[%clk 0:33:15]} 19.
Bxc5 {[%clk 0:16:00]} 19... Nxc5 {[%clk 0:33:39]} 20. Qb5+ {[%clk 0:13:29]}
20... Ke7 {[%clk 0:34:03]} 21. Qb2 {[%clk 0:11:09]} 21... Rg8 {[%clk 0:32:02]}
22. Rfb1 {[%clk 0:09:44]} 22... Nbd7 {[%clk 0:30:37]} 23. Qd4 {[%clk 0:08:58]}
23... Nf6 {[%clk 0:29:28]} 24. Ra3 {[%clk 0:08:51]} 24... Rc8 {[%clk 0:29:00]}
25. g4 {[%clk 0:06:43]} 25... h6 {[%clk 0:28:52]} 26. h4 {[%clk 0:06:28]} 26...
g5 {[%clk 0:28:07]} 27. hxg5 {[%clk 0:05:24]} 27... hxg5 {[%clk 0:28:33]} 28.
Rf3 {[%clk 0:05:06]} 28... e5 {[%clk 0:27:41]} 29. Qe3 {[%clk 0:04:05]} 29...
Ne6 {[%clk 0:26:51]} 30. Rxf6 {[%clk 0:01:09]} 30... Kxf6 {[%clk 0:27:17]} 31.
Bd5 {[%clk 0:00:48]} 31... Rb8 {[%clk 0:26:34]} 32. Rxb8 {[%clk 0:00:43]} 32...
Qxb8 {[%clk 0:27:03]} 33. Qe4 {[%clk 0:00:47]} 33... Qg8 {[%clk 0:23:40]} 34.
Qf5+ {[%clk 0:00:42]} 34... Ke7 {[%clk 0:24:08]} 35. Bxe6 {[%clk 0:00:36]} 35...
fxe6 {[%clk 0:24:31]} 36. Qb1 {[%clk 0:00:41]} 36... Kf6 {[%clk 0:23:48]} 37.
Qb6 {[%clk 0:00:42]} 37... Qf8 {[%clk 0:23:50]} 38. Qc7 {[%clk 0:00:37]} 38...
Qe7 {[%clk 0:23:32]} 39. Qb8 {[%clk 0:00:46]} 39... Kg7 {[%clk 0:23:41]} 40. Kg2
{[%clk 0:30:57]} 40... Qd7 {[%clk 0:53:49]} 41. Qb6 {[%clk 0:29:53]} 41... Kf6
{[%clk 0:53:40]} 42. f3 {[%clk 0:29:32]} 42... Qe7 {[%clk 0:53:03]} 43. Kf2
{[%clk 0:28:31]} 43... Qd7 {[%clk 0:51:26]} 44. Ke1 {[%clk 0:28:42]} 44... Ke7
{[%clk 0:48:53]} 45. Kd2 {[%clk 0:24:36]} 45... Qd8 {[%clk 0:46:28]} 46. Qa7+
{[%clk 0:23:43]} 46... Qd7 {[%clk 0:46:42]} 47. Qa8 {[%clk 0:22:46]} 47... Qd8
{[%clk 0:46:41]} 48. Qb7+ {[%clk 0:20:09]} 48... Kf6 {[%clk 0:41:28]} 49. Qa7
{[%clk 0:20:24]} 49... Qc8 {[%clk 0:37:54]} 50. Kc3 {[%clk 0:18:26]} 50... Qc6
{[%clk 0:36:09]} 51. Qa5 {[%clk 0:14:11]} 51... Kf7 {[%clk 0:31:37]} 52. Qa7+
{[%clk 0:11:25]} 52... Kf6 {[%clk 0:31:51]} 53. Kb4 {[%clk 0:10:43]} 53... Kg6
{[%clk 0:32:02]} 54. Qa5 {[%clk 0:07:38]} 54... Kf7 {[%clk 0:31:33]} 55. Kb3
{[%clk 0:07:22]} 55... Qb7+ {[%clk 0:28:20]} 56. Kc3 {[%clk 0:07:07]} 56... Qc6
{[%clk 0:28:03]} 57. Kd3 {[%clk 0:07:02]} 57... Qb7 {[%clk 0:28:10]} 58. Qb5
{[%clk 0:06:45]} 58... Qa7 {[%clk 0:27:25]} 59. Qb2 {[%clk 0:06:15]} 59... Kf6
{[%clk 0:27:19]} 60. e3 {[%clk 0:05:39]} 60... Qa8 {[%clk 0:26:26]} 61. Ke2
{[%clk 0:05:42]} 61... Qa4 {[%clk 0:26:50]} 62. Qc3 {[%clk 0:05:24]} 62... Qa2+
{[%clk 0:27:13]} 63. Kf1 {[%clk 0:05:41]} 63... Qb1+ {[%clk 0:27:18]} 64. Kf2
{[%clk 0:05:37]} 64... Qa2+ {[%clk 0:27:34]} 1/2-1/2

[Variant "Standard"]
[Site "Europe Echecs"]

[Event "Sunway Sitges Chess Festival"]
[Date "2024.12.21"]
[White "Travadon, Loic"]
[Black "Anwesh, Upadhyaya"]
[WhiteElo "2428"]
[BlackElo "2379"]
[Round "4.5"]
[Result "0-1"]
[TimeControl "40/5400+30:1800+30"]

1. e4 {[%clk 1:30:57]} 1... e5 {[%clk 1:26:21]} 2. Nf3 {[%clk 1:31:18]} 2... Nc6
{[%clk 1:26:35]} 3. Bb5 {[%clk 1:31:41]} 3... a6 {[%clk 1:26:40]} 4. Ba4 {[%clk
1:32:04]} 4... Nf6 {[%clk 1:26:16]} 5. O-O {[%clk 1:32:26]} 5... b5 {[%clk
1:26:09]} 6. Bb3 {[%clk 1:32:47]} 6... Be7 {[%clk 1:26:18]} 7. Re1 {[%clk
1:32:58]} 7... d6 {[%clk 1:26:25]} 8. a4 {[%clk 1:32:51]} 8... Bd7 {[%clk
1:23:32]} 9. c3 {[%clk 1:11:15]} 9... Na5 {[%clk 1:19:23]} 10. Bc2 {[%clk
1:11:34]} 10... c5 {[%clk 1:19:36]} 11. d4 {[%clk 1:08:55]} 11... Nc6 {[%clk
1:18:52]} 12. d5 {[%clk 1:06:03]} 12... Na5 {[%clk 1:18:45]} 13. b4 {[%clk
0:58:22]} 13... cxb4 {[%clk 1:16:38]} 14. cxb4 {[%clk 0:58:45]} 14... Nc4 {[%clk
1:17:02]} 15. Nbd2 {[%clk 0:54:37]} 15... Nxd2 {[%clk 1:15:22]} 16. Bxd2 {[%clk
0:52:31]} 16... O-O {[%clk 1:13:57]} 17. a5 {[%clk 0:51:30]} 17... Qb8 {[%clk
0:57:58]} 18. Bd3 {[%clk 0:45:11]} 18... Rc8 {[%clk 0:55:36]} 19. h3 {[%clk
0:42:30]} 19... Qb7 {[%clk 0:48:01]} 20. Nh2 {[%clk 0:38:08]} 20... g6 {[%clk
0:45:11]} 21. Qf3 {[%clk 0:33:27]} 21... Qc7 {[%clk 0:44:27]} 22. Kh1 {[%clk
0:22:30]} 22... Qd8 {[%clk 0:44:39]} 23. g4 {[%clk 0:13:19]} 23... Ne8 {[%clk
0:35:37]} 24. Qe3 {[%clk 0:13:37]} 24... Bf8 {[%clk 0:35:15]} 25. Rg1 {[%clk
0:13:33]} 25... Bg7 {[%clk 0:31:33]} 26. Rg2 {[%clk 0:09:07]} 26... Rc7 {[%clk
0:27:47]} 27. Rag1 {[%clk 0:08:26]} 27... Rb8 {[%clk 0:22:43]} 28. Nf1 {[%clk
0:08:17]} 28... Bc8 {[%clk 0:20:47]} 29. Ng3 {[%clk 0:07:14]} 29... Qh4 {[%clk
0:19:09]} 30. Rh2 {[%clk 0:07:36]} 30... Qe7 {[%clk 0:15:10]} 31. f3 {[%clk
0:07:45]} 31... Qh4 {[%clk 0:12:32]} 32. Ne2 {[%clk 0:07:57]} 32... Qe7 {[%clk
0:10:17]} 33. h4 {[%clk 0:08:08]} 33... h6 {[%clk 0:10:26]} 34. h5 {[%clk
0:04:56]} 34... g5 {[%clk 0:10:39]} 35. Qf2 {[%clk 0:03:21]} 35... Bf6 {[%clk
0:06:50]} 36. Be3 {[%clk 0:02:51]} 36... Bd7 {[%clk 0:06:41]} 37. Kg2 {[%clk
0:02:16]} 37... Ng7 {[%clk 0:05:09]} 38. Rhh1 {[%clk 0:02:18]} 38... Qf8 {[%clk
0:04:09]} 39. Rb1 {[%clk 0:01:42]} 39... Bd8 {[%clk 0:03:14]} 40. Kf1 {[%clk
0:31:07]} 40... Rcc8 {[%clk 0:32:19]} 41. Ke1 {[%clk 0:26:42]} 41... Qe7 {[%clk
0:32:01]} 42. Kd2 {[%clk 0:24:16]} 42... Be8 {[%clk 0:29:41]} 43. Rhc1 {[%clk
0:20:53]} 43... Qb7 {[%clk 0:29:48]} 44. Nc3 {[%clk 0:19:57]} 44... Bd7 {[%clk
0:29:02]} 45. Rb2 {[%clk 0:19:40]} 45... Ne8 {[%clk 0:28:44]} 46. Rbc2 {[%clk
0:19:54]} 46... Kf8 {[%clk 0:28:36]} 47. Na2 {[%clk 0:18:05]} 47... Rxc2+ {[%clk
0:26:06]} 48. Rxc2 {[%clk 0:18:30]} 48... Rc8 {[%clk 0:25:36]} 49. Rxc8 {[%clk
0:18:24]} 49... Bxc8 {[%clk 0:25:23]} 50. Nc1 {[%clk 0:18:40]} 50... Nf6 {[%clk
0:23:24]} 51. Qf1 {[%clk 0:15:43]} 51... Bd7 {[%clk 0:22:30]} 52. Ne2 {[%clk
0:15:20]} 52... Ne8 {[%clk 0:22:00]} 53. Nc3 {[%clk 0:15:36]} 53... Nf6 {[%clk
0:21:41]} 54. Qg1 {[%clk 0:15:14]} 54... Bc8 {[%clk 0:20:32]} 55. Kc2 {[%clk
0:15:30]} 55... Bd7 {[%clk 0:20:15]} 56. Kb2 {[%clk 0:15:53]} 56... Bc8 {[%clk
0:20:28]} 57. Qh2 {[%clk 0:15:36]} 57... Bd7 {[%clk 0:19:59]} 58. Qg2 {[%clk
0:15:59]} 58... Bc8 {[%clk 0:19:47]} 59. Qd2 {[%clk 0:16:20]} 59... Ne8 {[%clk
0:19:09]} 60. Qf2 {[%clk 0:16:29]} 60... Nf6 {[%clk 0:19:20]} 61. Qe2 {[%clk
0:16:35]} 61... Bd7 {[%clk 0:19:35]} 62. Ka3 {[%clk 0:15:02]} 62... Ne8 {[%clk
0:18:56]} 63. Kb2 {[%clk 0:12:55]} 63... Nf6 {[%clk 0:19:06]} 64. Nb1 {[%clk
0:13:02]} 64... Bc8 {[%clk 0:18:58]} 65. Nd2 {[%clk 0:13:24]} 65... Bd7 {[%clk
0:18:16]} 66. Nb3 {[%clk 0:13:28]} 66... Be8 {[%clk 0:15:04]} 67. Qd2 {[%clk
0:13:43]} 67... Ng8 {[%clk 0:14:12]} 68. Qc3 {[%clk 0:13:44]} 68... Nf6 {[%clk
0:13:57]} 69. Nc5 {[%clk 0:11:08]} 69... Qa8 {[%clk 0:12:27]} 70. Be2 {[%clk
0:09:31]} 70... Kg8 {[%clk 0:11:14]} 71. Nd3 {[%clk 0:09:33]} 71... Qb7 {[%clk
0:11:03]} 72. Nxe5 {[%clk 0:05:46]} 72... dxe5 {[%clk 0:09:27]} 73. Qxe5 {[%clk
0:06:14]} 73... Qe7 {[%clk 0:09:37]} 74. Qc3 {[%clk 0:02:18]} 74... Bc7 {[%clk
0:06:33]} 75. Bc5 {[%clk 0:02:00]} 75... Qe5 {[%clk 0:06:11]} 76. Bd4 {[%clk
0:02:14]} 76... Qh2 {[%clk 0:06:36]} 77. Bxf6 {[%clk 0:02:07]} 77... Qxe2+
{[%clk 0:07:00]} 78. Ka3 {[%clk 0:02:07]} 78... Bf4 {[%clk 0:05:21]} 79. Bh8
{[%clk 0:01:59]} 79... Qe3 {[%clk 0:03:34]} 80. Qxe3 {[%clk 0:01:49]} 80... Bxe3
{[%clk 0:04:01]} 81. Bf6 {[%clk 0:02:05]} 81... Kf8 {[%clk 0:02:30]} 82. Kb3
{[%clk 0:02:31]} 82... Bd2 {[%clk 0:02:25]} 83. Bd4 {[%clk 0:02:40]} 83... f5
{[%clk 0:02:09]} 84. Bc5+ {[%clk 0:02:53]} 84... Kf7 {[%clk 0:01:29]} 85. gxf5
{[%clk 0:02:47]} 85... Bf4 {[%clk 0:01:18]} 86. Bd4 {[%clk 0:02:51]} 86... Ke7
{[%clk 0:00:41]} 87. e5 {[%clk 0:03:06]} 87... Bxh5 {[%clk 0:00:57]} 88. Bc5+
{[%clk 0:03:07]} 88... Ke8 {[%clk 0:00:46]} 89. e6 {[%clk 0:03:34]} 89... Bxf3
{[%clk 0:00:55]} 90. d6 {[%clk 0:03:51]} 90... Bc6 {[%clk 0:00:37]} 91. Kc3
{[%clk 0:03:36]} 91... Be5+ {[%clk 0:00:55]} 92. Kd3 {[%clk 0:03:51]} 92... h5
{[%clk 0:00:40]} 93. d7+ {[%clk 0:02:44]} 93... Bxd7 {[%clk 0:01:03]} 94. Ke4
{[%clk 0:03:04]} 94... Bf6 {[%clk 0:01:01]} 95. Kd5 {[%clk 0:03:08]} 95... Bc8
{[%clk 0:00:58]} 96. Kc6 {[%clk 0:03:27]} 96... h4 {[%clk 0:00:43]} 97. Kc7
{[%clk 0:03:56]} 97... Bxe6 {[%clk 0:00:45]} 98. fxe6 {[%clk 0:04:21]} 98... h3
{[%clk 0:00:51]} 99. Bd6 {[%clk 0:04:42]} 99... Be7 {[%clk 0:00:37]} 100. Bg3
{[%clk 0:05:09]} 100... Bxb4 {[%clk 0:00:57]} 101. Kb6 {[%clk 0:05:38]} 101...
Be1 {[%clk 0:00:40]} 102. Bh2 {[%clk 0:06:00]} 102... b4 {[%clk 0:00:45]} 0-1

[Variant "Standard"]
[Site "Europe Echecs"]

[Event "Sunway Sitges Chess Festival"]
[Date "2024.12.21"]
[White "Leisch, Lukas"]
[Black "Song, Edward"]
[WhiteElo "2417"]
[BlackElo "2363"]
[Round "4.6"]
[Result "0-1"]
[TimeControl "40/5400+30:1800+30"]

1. d4 {[%clk 1:30:57]} 1... d5 {[%clk 1:29:35]} 2. c4 {[%clk 1:31:20]} 2... c6
{[%clk 1:29:59]} 3. Nf3 {[%clk 1:31:35]} 3... Nf6 {[%clk 1:30:24]} 4. g3 {[%clk
1:31:42]} 4... Bg4 {[%clk 1:29:54]} 5. Ne5 {[%clk 1:31:33]} 5... Bf5 {[%clk
1:30:19]} 6. Qb3 {[%clk 1:31:34]} 6... Qb6 {[%clk 1:30:01]} 7. cxd5 {[%clk
1:31:23]} 7... Nxd5 {[%clk 1:29:53]} 8. Bg2 {[%clk 1:30:05]} 8... Qxb3 {[%clk
1:30:03]} 9. axb3 {[%clk 1:30:33]} 9... Nb4 {[%clk 1:30:12]} 10. Na3 {[%clk
1:22:43]} 10... Bc2 {[%clk 0:58:41]} 11. Kd2 {[%clk 1:04:09]} 11... Bf5 {[%clk
0:33:07]} 12. e4 {[%clk 1:03:02]} 12... Bc8 {[%clk 0:32:23]} 13. Nc2 {[%clk
1:00:16]} 13... e6 {[%clk 0:28:32]} 14. Kc3 {[%clk 0:52:32]} 14... N8a6 {[%clk
0:27:24]} 15. Bf4 {[%clk 0:51:50]} 15... Nxc2 {[%clk 0:25:02]} 16. Kxc2 {[%clk
0:52:14]} 16... Bd6 {[%clk 0:24:42]} 17. Nxf7 {[%clk 0:43:07]} 17... Bxf4 {[%clk
0:24:23]} 18. Nxh8 {[%clk 0:43:32]} 18... Bc7 {[%clk 0:23:44]} 19. h4 {[%clk
0:41:29]} 19... Bd7 {[%clk 0:13:59]} 20. h5 {[%clk 0:41:51]} 20... Ke7 {[%clk
0:14:17]} 21. h6 {[%clk 0:36:27]} 21... g5 {[%clk 0:14:37]} 22. Ng6+ {[%clk
0:35:44]} 22... hxg6 {[%clk 0:15:03]} 23. e5 {[%clk 0:35:19]} 23... Bb6 {[%clk
0:12:34]} 24. Kc3 {[%clk 0:28:43]} 24... Nc7 {[%clk 0:12:34]} 25. Rad1 {[%clk
0:24:46]} 25... Nd5+ {[%clk 0:12:12]} 26. Kd3 {[%clk 0:22:26]} 26... Kf7 {[%clk
0:11:40]} 27. Be4 {[%clk 0:20:22]} 27... Rh8 {[%clk 0:11:29]} 28. Kc4 {[%clk
0:17:47]} 28... Be8 {[%clk 0:10:38]} 29. Rd3 {[%clk 0:17:38]} 29... Kg8 {[%clk
0:10:15]} 30. Rf3 {[%clk 0:16:17]} 30... Bd8 {[%clk 0:10:16]} 31. b4 {[%clk
0:15:37]} 31... Be7 {[%clk 0:10:24]} 32. Bxd5 {[%clk 0:12:05]} 32... cxd5+
{[%clk 0:09:59]} 33. Kb3 {[%clk 0:12:12]} 33... a6 {[%clk 0:05:25]} 34. g4
{[%clk 0:12:20]} 34... Bc6 {[%clk 0:03:53]} 35. h7+ {[%clk 0:10:01]} 35... Kg7
{[%clk 0:04:19]} 36. Rfh3 {[%clk 0:10:13]} 36... Bd8 {[%clk 0:03:37]} 37. Kc3
{[%clk 0:08:44]} 37... Bb5 {[%clk 0:03:33]} 38. f3 {[%clk 0:08:42]} 38... Bb6
{[%clk 0:03:28]} 39. Rh6 {[%clk 0:06:16]} 39... Be2 {[%clk 0:02:22]} 40. R6h3
{[%clk 0:36:27]} 40... Bb5 {[%clk 0:32:49]} 41. Rh6 {[%clk 0:36:33]} 41... Ba7
{[%clk 0:28:54]} 42. R6h2 {[%clk 0:25:36]} 42... Rc8+ {[%clk 0:27:15]} 43. Kb3
{[%clk 0:21:26]} 43... Kh8 {[%clk 0:26:31]} 44. Rh6 {[%clk 0:20:54]} 44... Bd3
{[%clk 0:21:04]} 45. R1h2 {[%clk 0:19:14]} 45... Rc1 {[%clk 0:19:59]} 46. b5
{[%clk 0:16:23]} 46... a5 {[%clk 0:19:21]} 47. Rh1 {[%clk 0:15:07]} 47... Rc4
{[%clk 0:18:08]} 48. R1h2 {[%clk 0:12:54]} 48... Bxd4 {[%clk 0:18:05]} 49. Rd2
{[%clk 0:12:52]} 49... Bb1 {[%clk 0:18:13]} 50. Rh1 {[%clk 0:11:58]} 50... a4+
{[%clk 0:18:33]} 51. Ka3 {[%clk 0:12:22]} 51... Bc5+ {[%clk 0:18:57]} 52. b4
{[%clk 0:12:40]} 52... Bxb4+ {[%clk 0:19:16]} 0-1

[Variant "Standard"]
[Site "Europe Echecs"]

[Event "Sunway Sitges Chess Festival"]
[Date "2024.12.21"]
[White "Hess, Max"]
[Black "Arfan, Aditya Bagus"]
[WhiteElo "2385"]
[BlackElo "2416"]
[Round "4.7"]
[Result "1/2-1/2"]
[TimeControl "40/5400+30:1800+30"]

1. d4 {[%clk 1:30:57]} 1... Nf6 {[%clk 1:28:04]} 2. c4 {[%clk 1:31:17]} 2... g6
{[%clk 1:28:24]} 3. Nc3 {[%clk 1:31:27]} 3... Bg7 {[%clk 1:28:45]} 4. e4 {[%clk
1:31:51]} 4... d6 {[%clk 1:28:50]} 5. Be2 {[%clk 1:32:02]} 5... O-O {[%clk
1:27:26]} 6. Nf3 {[%clk 1:31:57]} 6... Nc6 {[%clk 1:27:16]} 7. d5 {[%clk
1:30:00]} 7... Nb8 {[%clk 1:26:15]} 8. O-O {[%clk 1:30:03]} 8... c6 {[%clk
1:20:54]} 9. h3 {[%clk 1:29:20]} 9... a6 {[%clk 1:17:06]} 10. Re1 {[%clk
1:23:54]} 10... b5 {[%clk 1:13:49]} 11. a3 {[%clk 1:15:07]} 11... bxc4 {[%clk
1:01:44]} 12. Bxc4 {[%clk 1:14:47]} 12... Bb7 {[%clk 1:00:58]} 13. Bf4 {[%clk
1:04:44]} 13... Nbd7 {[%clk 0:58:23]} 14. Qd2 {[%clk 0:59:36]} 14... Rc8 {[%clk
0:54:13]} 15. Ba2 {[%clk 0:49:34]} 15... cxd5 {[%clk 0:49:49]} 16. exd5 {[%clk
0:47:22]} 16... Nb6 {[%clk 0:45:17]} 17. Bh6 {[%clk 0:46:41]} 17... Nc4 {[%clk
0:43:39]} 18. Bxc4 {[%clk 0:45:04]} 18... Rxc4 {[%clk 0:43:30]} 19. Bxg7 {[%clk
0:45:11]} 19... Kxg7 {[%clk 0:43:45]} 20. Re3 {[%clk 0:43:09]} 20... Re8 {[%clk
0:37:46]} 21. Rae1 {[%clk 0:41:40]} 21... Rc5 {[%clk 0:36:24]} 22. b4 {[%clk
0:40:11]} 22... Rc7 {[%clk 0:33:39]} 23. Qd4 {[%clk 0:33:47]} 23... Qc8 {[%clk
0:18:57]} 24. Nd2 {[%clk 0:26:22]} 24... Kf8 {[%clk 0:12:54]} 25. Nce4 {[%clk
0:24:40]} 25... Rc1 {[%clk 0:13:07]} 26. Nxf6 {[%clk 0:21:40]} 26... Rxe1+
{[%clk 0:13:31]} 27. Rxe1 {[%clk 0:22:05]} 27... exf6 {[%clk 0:13:58]} 28. Rxe8+
{[%clk 0:22:03]} 28... Qxe8 {[%clk 0:11:45]} 29. Qxf6 {[%clk 0:15:53]} 29...
Qe1+ {[%clk 0:09:52]} 30. Nf1 {[%clk 0:16:06]} 30... Qe5 {[%clk 0:10:13]} 31.
Qd8+ {[%clk 0:09:00]} 31... Kg7 {[%clk 0:10:36]} 32. Qb6 {[%clk 0:07:52]} 32...
Qxd5 {[%clk 0:08:52]} 33. Ne3 {[%clk 0:08:19]} 33... Qc6 {[%clk 0:09:06]} 34.
Qd4+ {[%clk 0:07:17]} 34... Kg8 {[%clk 0:08:54]} 35. f3 {[%clk 0:05:42]} 35...
Qc1+ {[%clk 0:06:49]} 36. Kh2 {[%clk 0:05:17]} 36... Qc7 {[%clk 0:04:28]} 37.
Ng4 {[%clk 0:03:50]} 37... h5 {[%clk 0:04:17]} 38. Nf6+ {[%clk 0:02:37]} 38...
Kf8 {[%clk 0:04:41]} 39. Nh7+ {[%clk 0:02:34]} 39... Ke7 {[%clk 0:03:25]} 40.
Qf6+ {[%clk 0:31:08]} 40... Ke8 {[%clk 0:33:44]} 41. Qd4 {[%clk 0:22:02]} 41...
Qe7 {[%clk 0:29:50]} 42. Nf6+ {[%clk 0:20:26]} 42... Kd8 {[%clk 0:28:42]} 43.
Qb6+ {[%clk 0:10:51]} 43... Qc7 {[%clk 0:24:10]} 44. Qd4 {[%clk 0:10:35]} 44...
Qe7 {[%clk 0:22:01]} 45. Qb6+ {[%clk 0:11:01]} 45... Qc7 {[%clk 0:21:56]} 46.
Qd4 {[%clk 0:11:03]} 46... Qe7 {[%clk 0:17:43]} 1/2-1/2

[Variant "Standard"]
[Site "Europe Echecs"]